[Event "DLM Youth 2024"]
[Site "Tuebingen"]
[Date "2024.10.05"]
[Round "5"]
[White "Pubantz, Jan"]
[Black "Haubold, Sebastian"]
[Result "1-0"]
[ECO "E94"]
[WhiteElo "2318"]
[BlackElo "2030"]
[Annotator "RC"]
[PlyCount "93"]
[EventDate "2024.10.03"]
[EventType "team-swiss"]
[EventRounds "7"]
[EventCountry "GER"]
[SourceTitle "playchess.com"]
[Source "ChessBase"]
[SourceQuality "1"]
[TimeControl "40/5400+30:1800+30"]

1. d4 {[%emt 0:00:01]} Nf6 {[%emt 0:00:14]} 2. c4 {[%emt 0:00:04]} g6 {[%emt 0:00:13]} 3. Nc3 {[%emt 0:00:02]} Bg7 {[%emt 0:00:26]} 4. e4 {[%emt 0:00:02]} d6 {[%emt 0:00:07]} 5. Be2 {[%emt 0:00:05]} O-O {[%emt 0:00:10]} 6. Nf3 {[%emt 0:00:05]} e5 {[%emt 0:00:47]} 7. Be3 {[%emt 0:00:06]} exd4 {[%emt 0:02:01]} 8. Nxd4 {[%emt 0:00:19]} Re8 {[%emt 0:00:10]} 9. Qc2 {[%emt 0:00:18]} c6 {[%emt 0:04:08]} 10. O-O {[%emt 0:00:17]} Qe7 {[%emt 0:04:06]} 11. Rae1 {[%emt 0:00:49]} Nbd7 {[%emt 0:07:13]} 12. Qd2 {[%emt 0:04:53]} Nc5 {[%emt 0:05:12]} 13. f3 {[%emt 0:02:57]} d5 {[%emt 0:05:11]} 14. b4 {[%emt 0:01:59]} Ncd7 {[%emt 0:01:15]} 15. cxd5 {[%emt 0:09:23]} Nxd5 {[%emt 0:18:34]} 16. Nxd5 {[%emt 0:02:59]} cxd5 {[%emt 0:04:56]} 17. Nb5 {[%emt 0:01:13]} Nf8 {[%emt 0:02:08]} 18. Bc5 {[%emt 0:11:34]} Qd8 {[%emt 0:14:39]} 19. Qxd5 {[%emt 0:12:14]} Ne6 {[%emt 0:06:11]} 20. Nd6 {[%emt 0:17:21]} Rf8 {[%emt 0:02:52]} 21. Be3 {[%emt 0:01:44]} Qe7 {[%emt 0:06:55]} 22. f4 {[%emt 0:03:07]} Rd8 {[%emt 0:00:27]} 23. e5 {[%emt 0:02:37]} Nc7 {[%emt 0:05:12]} 24. Qb3 {[%emt 0:13:38]} Be6 {[%emt 0:01:46]} 25. Bc4 {[%emt 0:00:08]} Bxc4 {[%emt 0:02:05]} 26. Qxc4 {[%emt 0:00:11]} Ne8 {[%emt 0:00:48]} 27. Bc5 {[%emt 0:03:17]} b6 {[%emt 0:03:20]} 28. Nxe8 {[%emt 0:05:54]} Qxe8 {[%emt 0:00:10]} 29. Bd6 {[%emt 0:01:15]} Rac8 {[%emt 0:00:02]} 30. Qe4 {[%emt 0:02:18]} Qe6 {[%emt 0:01:18]} 31. a3 {[%emt 0:02:41]} Rc4 {[%emt 0:01:08]} 32. f5 {[%emt 0:01:25]} gxf5 {[%emt 0:01:13]} 33. Qxf5 {[%emt 0:00:03]} Qxf5 {[%emt 0:00:35]} 34. Rxf5 {[%emt 0:00:01]} Re8 {[%emt 0:00:53]} 35. Ref1 {[%emt 0:00:43]} Re4 {[%emt 0:00:06]} 36. Rxf7 {[%emt 0:00:27]} Bxe5 {[%emt 0:00:09]} 37. Bxe5 {[%emt 0:00:37]} R4xe5 {[%emt 0:00:22]} 38. Rxa7 {[%emt 0:00:30]} Rg5 {[%emt 0:00:58]} 39. Rc1 {[%emt 0:00:50]} h5 {[%emt 0:01:15]} 40. h3 {[%emt 0:01:03]} b5 {[%emt 0:00:24]} 41. Kh2 {[%emt 0:04:34]} Rd8 {[%emt 0:02:10]} 42. Rb7 {[%emt 0:07:27]} h4 {[%emt 0:01:21]} 43. Rc5 {[%emt 0:04:32]} Rg3 {[%emt 0:00:14]} 44. Rbxb5 {[%emt 0:02:13]} Rxa3 {[%emt 0:00:40]} 45. Rg5+ {[%emt 0:00:57]} Kf7 {[%emt 0:00:21]} 46. Rg4 {[%emt 0:00:12]} Rd2 {[%emt 0:01:26]} 47. Rxh4 {[%emt 0:00:37]} 1-0

[Event "DLM Youth 2024"]
[Site "Tuebingen"]
[Date "2024.10.05"]
[Round "5"]
[White "Haack, Kevin"]
[Black "Lutz, Ruben"]
[Result "1/2-1/2"]
[ECO "E06"]
[WhiteElo "2305"]
[BlackElo "2270"]
[Annotator "RC"]
[PlyCount "104"]
[EventDate "2024.10.03"]
[EventType "team-swiss"]
[EventRounds "7"]
[EventCountry "GER"]
[SourceTitle "playchess.com"]
[Source "ChessBase"]
[SourceQuality "1"]
[TimeControl "40/5400+30:1800+30"]

1. c4 {[%emt 0:00:03]} e6 {[%emt 0:00:05]} 2. Nf3 {[%emt 0:00:06]} d5 {[%emt 0:00:05]} 3. g3 {[%emt 0:00:04]} Nf6 {[%emt 0:00:05]} 4. Bg2 {[%emt 0:00:03]} Be7 {[%emt 0:00:04]} 5. d4 {[%emt 0:00:06]} O-O {[%emt 0:00:09]} 6. O-O {[%emt 0:00:04]} c6 {[%emt 0:00:09]} 7. Nc3 {[%emt 0:00:04]} b6 {[%emt 0:00:05]} 8. Ne5 {[%emt 0:00:05]} Ba6 {[%emt 0:00:06]} 9. Re1 {[%emt 0:00:04]} Bxc4 {[%emt 0:00:56]} 10. Nxc4 {[%emt 0:00:12]} dxc4 {[%emt 0:00:05]} 11. e3 {[%emt 0:00:06]} Nd5 {[%emt 0:00:09]} 12. a4 {[%emt 0:00:13]} Na6 {[%emt 0:25:31]} 13. Bf1 {[%emt 0:00:04]} c5 {[%emt 0:29:24]} 14. Bxc4 {[%emt 0:06:29]} Nab4 {[%emt 0:00:05]} 15. e4 {[%emt 0:08:36]} Nxc3 {[%emt 0:02:14]} 16. bxc3 {[%emt 0:03:03]} Nc6 {[%emt 0:00:05]} 17. Bb2 {[%emt 0:15:40]} Na5 {[%emt 0:01:41]} 18. Bf1 {[%emt 0:02:45]} Qc7 {[%emt 0:00:28]} 19. h4 {[%emt 0:12:34]} Rad8 {[%emt 0:02:40]} 20. h5 {[%emt 0:01:14]} e5 {[%emt 0:13:39]} 21. d5 {[%emt 0:07:46]} c4 {[%emt 0:00:11]} 22. Ra2 {[%emt 0:01:25]} Bc5 {[%emt 0:06:21]} 23. Bc1 {[%emt 0:03:32]} Nb7 {[%emt 0:00:35]} 24. h6 {[%emt 0:06:26]} g6 {[%emt 0:01:12]} 25. Bxc4 {[%emt 0:03:24]} Bxf2+ {[%emt 0:06:02]} 26. Rxf2 {[%emt 0:00:02]} Qxc4 {[%emt 0:00:06]} 27. Bg5 {[%emt 0:00:59]} Rd7 {[%emt 0:06:03]} 28. Bf6 {[%emt 0:01:40]} Re8 {[%emt 0:02:45]} 29. Qf3 {[%emt 0:00:00]} Qc7 {[%emt 0:00:23]} 30. Be7 {[%emt 0:09:25]} f5 {[%emt 0:00:19]} 31. Ba3 {[%emt 0:00:01]} Rf7 {[%emt 0:01:17]} 32. Qe3 {[%emt 0:00:00]} Nd6 {[%emt 0:01:05]} 33. Bxd6 {[%emt 0:06:14]} Qxd6 {[%emt 0:00:03]} 34. Ref1 {[%emt 0:00:05]} Ref8 {[%emt 0:00:29]} 35. c4 {[%emt 0:00:14]} fxe4 {[%emt 0:02:24]} 36. Rxf7 {[%emt 0:01:12]} Rxf7 {[%emt 0:00:01]} 37. Rxf7 {[%emt 0:00:02]} Kxf7 {[%emt 0:00:07]} 38. Qxe4 {[%emt 0:00:12]} Ke7 {[%emt 0:01:29]} 39. Kg2 {[%emt 0:01:54]} Qf6 {[%emt 0:00:37]} 40. a5 {[%emt 0:01:40]} Kd6 {[%emt 0:00:28]} 41. Qe3 {[%emt 0:32:25]} Kd7 {[%emt 0:11:44]} 42. axb6 {[%emt 0:00:00]} axb6 {[%emt 0:00:05]} 43. Qf3 {[%emt 0:00:00]} Qf5 {[%emt 0:12:15]} 44. Qe2 {[%emt 0:00:00]} Kd6 {[%emt 0:01:30]} 45. Qe3 {[%emt 0:02:24]} Qc2+ {[%emt 0:00:50]} 46. Kh3 {[%emt 0:00:04]} Qxc4 {[%emt 0:01:37]} 47. Qxb6+ {[%emt 0:00:05]} Kxd5 {[%emt 0:00:03]} 48. Qb7+ {[%emt 0:00:08]} Ke6 {[%emt 0:02:22]} 49. Qxh7 {[%emt 0:00:38]} Qf1+ {[%emt 0:00:04]} 50. Kh2 {[%emt 0:00:34]} Qf2+ {[%emt 0:00:06]} 51. Kh3 {[%emt 0:00:18]} Qf1+ {[%emt 0:00:40]} 52. Kh2 {[%emt 0:00:04]} Qf2+ {[%emt 0:00:21]} 1/2-1/2

[Event "DLM Youth 2024"]
[Site "Tuebingen"]
[Date "2024.10.05"]
[Round "5"]
[White "Gallasch, Jonas"]
[Black "Fuhrmann, Bahne"]
[Result "0-1"]
[ECO "A31"]
[WhiteElo "2291"]
[BlackElo "2146"]
[Annotator "RC"]
[PlyCount "100"]
[EventDate "2024.10.03"]
[EventType "team-swiss"]
[EventRounds "7"]
[EventCountry "GER"]
[SourceTitle "playchess.com"]
[Source "ChessBase"]
[SourceQuality "1"]
[TimeControl "40/5400+30:1800+30"]

1. Nf3 {[%emt 0:00:04]} Nf6 {[%emt 0:00:07]} 2. c4 {[%emt 0:00:06]} c5 {[%emt 0:00:04]} 3. d4 {[%emt 0:00:04]} cxd4 {[%emt 0:00:08]} 4. Nxd4 {[%emt 0:00:06]} Nc6 {[%emt 0:03:06]} 5. Nc3 {[%emt 0:00:06]} Qb6 {[%emt 0:00:30]} 6. Nb3 {[%emt 0:01:16]} e6 {[%emt 0:00:04]} 7. e4 {[%emt 0:04:48]} Bb4 {[%emt 0:01:21]} 8. Be3 {[%emt 0:01:25]} Qd8 {[%emt 0:03:42]} 9. Qc2 {[%emt 0:18:22]} d5 {[%emt 0:14:40]} 10. exd5 {[%emt 0:08:03]} exd5 {[%emt 0:00:16]} 11. O-O-O {[%emt 0:00:07]} d4 {[%emt 0:11:38]} 12. Nxd4 {[%emt 0:07:11]} Qe7 {[%emt 0:00:48]} 13. Nxc6 {[%emt 0:05:37]} bxc6 {[%emt 0:00:06]} 14. Bd3 {[%emt 0:00:08]} O-O {[%emt 0:02:39]} 15. Rhe1 {[%emt 0:01:44]} Qe5 {[%emt 0:05:13]} 16. Bd4 {[%emt 0:09:43]} Qg5+ {[%emt 0:02:18]} 17. Kb1 {[%emt 0:05:49]} c5 {[%emt 0:01:15]} 18. h4 {[%emt 0:06:16]} Qf4 {[%emt 0:02:13]} 19. Be5 {[%emt 0:01:39]} Qh6 {[%emt 0:00:28]} 20. Bxf6 {[%emt 0:15:24]} Qxf6 {[%emt 0:00:10]} 21. Nd5 {[%emt 0:00:03]} Qh6 {[%emt 0:00:58]} 22. Nxb4 {[%emt 0:01:15]} cxb4 {[%emt 0:00:05]} 23. Qd2 {[%emt 0:00:03]} Qf6 {[%emt 0:04:38]} 24. Be4 {[%emt 0:02:45]} Bf5 {[%emt 0:02:32]} 25. Qf4 {[%emt 0:03:12]} Bxe4+ {[%emt 0:01:14]} 26. Rxe4 {[%emt 0:00:02]} Qg6 {[%emt 0:01:23]} 27. Qg4 {[%emt 0:01:15]} Qb6 {[%emt 0:03:04]} 28. Qe2 {[%emt 0:00:46]} b3 {[%emt 0:02:56]} 29. axb3 {[%emt 0:03:16]} Qxb3 {[%emt 0:00:24]} 30. Qc2 {[%emt 0:00:11]} Qb7 {[%emt 0:01:14]} 31. f3 {[%emt 0:03:05]} a5 {[%emt 0:05:54]} 32. Rd5 {[%emt 0:01:37]} a4 {[%emt 0:01:01]} 33. Rb5 {[%emt 0:00:10]} Qc6 {[%emt 0:00:40]} 34. Qc3 {[%emt 0:00:38]} Rfc8 {[%emt 0:02:40]} 35. Ree5 {[%emt 0:01:02]} h5 {[%emt 0:13:08]} 36. Qd3 {[%emt 0:00:39]} g6 {[%emt 0:04:34]} 37. Qe4 {[%emt 0:00:25]} Qd6 {[%emt 0:05:16]} 38. Red5 {[%emt 0:00:37]} Qf6 {[%emt 0:01:21]} 39. Ra5 {[%emt 0:00:18]} a3 {[%emt 0:01:11]} 40. Rxa3 {[%emt 0:00:42]} Rxa3 {[%emt 0:01:02]} 41. bxa3 {[%emt 0:00:42]} Qc3 {[%emt 0:01:52]} 42. Rb5 {[%emt 0:06:25]} Rd8 {[%emt 0:08:45]} 43. Rb2 {[%emt 0:08:52]} Qxa3 {[%emt 0:02:37]} 44. Qc2 {[%emt 0:01:12]} Qe3 {[%emt 0:04:44]} 45. Qe4 {[%emt 0:06:06]} Qg1+ {[%emt 0:08:02]} 46. Ka2 {[%emt 0:00:15]} Qa7+ {[%emt 0:00:33]} 47. Kb1 {[%emt 0:00:23]} Qg1+ {[%emt 0:00:49]} 48. Ka2 {[%emt 0:00:04]} Qa7+ {[%emt 0:00:03]} 49. Kb1 {[%emt 0:00:05]} Qa4 {[%emt 0:02:54]} 50. Rc2 {[%emt 0:01:28]} Rd1+ {[%emt 0:00:50]} 0-1

[Event "DLM Youth 2024"]
[Site "Tuebingen"]
[Date "2024.10.05"]
[Round "5"]
[White "Chassard, Cedric"]
[Black "Semling, Julius"]
[Result "1/2-1/2"]
[ECO "B52"]
[WhiteElo "2289"]
[BlackElo "2233"]
[Annotator "RC"]
[PlyCount "43"]
[EventDate "2024.10.03"]
[EventType "team-swiss"]
[EventRounds "7"]
[EventCountry "GER"]
[SourceTitle "playchess.com"]
[Source "ChessBase"]
[SourceQuality "1"]
[TimeControl "40/5400+30:1800+30"]

1. e4 {[%emt 0:00:04]} c5 {[%emt 0:00:07]} 2. Nf3 {[%emt 0:00:06]} d6 {[%emt 0:00:07]} 3. Bb5+ {[%emt 0:00:04]} Bd7 {[%emt 0:00:12]} 4. Bxd7+ Qxd7 5. c4 {[%emt 0:03:10]} Nc6 {[%emt 0:00:26]} 6. Nc3 {[%emt 0:00:54]} g6 {[%emt 0:00:13]} 7. d4 {[%emt 0:00:13]} cxd4 8. Nxd4 {[%emt 0:00:05]} Bg7 {[%emt 0:00:15]} 9. Be3 {[%emt 0:00:07]} Nf6 {[%emt 0:00:16]} 10. f3 {[%emt 0:00:10]} O-O {[%emt 0:00:09]} 11. O-O {[%emt 0:00:05]} a6 {[%emt 0:00:44]} 12. Qd3 {[%emt 0:00:55]} Rfc8 {[%emt 0:00:24]} 13. b3 {[%emt 0:02:34]} b5 {[%emt 0:00:40]} 14. cxb5 {[%emt 0:03:01]} Ne5 {[%emt 0:00:15]} 15. Qd2 {[%emt 0:00:30]} d5 {[%emt 0:00:06]} 16. Nxd5 {[%emt 0:07:36]} Nxd5 {[%emt 0:00:24]} 17. exd5 {[%emt 0:00:06]} axb5 {[%emt 0:00:25]} 18. Rad1 {[%emt 0:02:51]} Qxd5 {[%emt 0:00:56]} 19. Qe2 {[%emt 0:01:27]} Nc6 {[%emt 0:00:07]} 20. Nxb5 {[%emt 0:03:02]} Qe6 {[%emt 0:07:01]} 21. Qf2 {[%emt 0:26:45]} Nb4 {[%emt 0:07:59]} 22. Rd2 {[%emt 0:10:00]} 1/2-1/2

[Event "DLM Youth 2024"]
[Site "Tuebingen"]
[Date "2024.10.05"]
[Round "5"]
[White "Bornholdt, Joa Max"]
[Black "Nunez Gregoire, Daniel"]
[Result "1-0"]
[ECO "C54"]
[WhiteElo "2268"]
[BlackElo "2154"]
[Annotator "RC"]
[PlyCount "67"]
[EventDate "2024.10.03"]
[EventType "team-swiss"]
[EventRounds "7"]
[EventCountry "GER"]
[SourceTitle "playchess.com"]
[Source "ChessBase"]
[SourceQuality "1"]
[TimeControl "40/5400+30:1800+30"]

1. e4 {[%emt 0:00:58]} e5 {[%emt 0:00:01]} 2. Nf3 {[%emt 0:00:12]} Nc6 {[%emt 0:00:05]} 3. Bc4 {[%emt 0:00:37]} Bc5 {[%emt 0:00:02]} 4. c3 {[%emt 0:01:40]} Nf6 {[%emt 0:00:37]} 5. d4 {[%emt 0:02:26]} exd4 {[%emt 0:00:07]} 6. b4 {[%emt 0:01:03]} Bb6 {[%emt 0:02:19]} 7. e5 {[%emt 0:00:32]} d5 {[%emt 0:04:02]} 8. exf6 {[%emt 0:00:35]} dxc4 {[%emt 0:00:01]} 9. Qe2+ {[%emt 0:00:33]} Be6 {[%emt 0:01:12]} 10. b5 {[%emt 0:02:56]} d3 {[%emt 0:02:34]} 11. Qe4 {[%emt 0:00:22]} Nb4 {[%emt 0:01:22]} 12. O-O {[%emt 0:00:47]} Nc2 {[%emt 0:03:20]} 13. fxg7 {[%emt 0:02:00]} Rg8 {[%emt 0:00:28]} 14. Bg5 {[%emt 0:02:02]} Qd5 {[%emt 0:10:00]} 15. Qxh7 {[%emt 0:00:43]} Kd7 {[%emt 0:02:10]} 16. Bf6 {[%emt 0:18:44]} Rae8 {[%emt 0:03:50]} 17. Ne5+ {[%emt 0:26:40]} Kc8 {[%emt 0:02:09]} 18. Nd2 {[%emt 0:15:42]} Nxa1 {[%emt 0:03:53]} 19. Rxa1 {[%emt 0:03:27]} Qxb5 {[%emt 0:13:07]} 20. Rb1 {[%emt 0:02:34]} Qa4 {[%emt 0:03:25]} 21. Qe4 {[%emt 0:04:55]} Qxa2 {[%emt 0:11:25]} 22. Qf4 {[%emt 0:00:19]} Ba5 {[%emt 0:12:06]} 23. Nef3 {[%emt 0:04:59]} Qa3 {[%emt 0:06:24]} 24. Ne4 {[%emt 0:01:46]} Bb6 {[%emt 0:03:44]} 25. h4 {[%emt 0:00:48]} Qa5 {[%emt 0:00:37]} 26. Ne5 {[%emt 0:01:12]} Qa2 {[%emt 0:03:08]} 27. Rf1 {[%emt 0:00:02]} Qe2 {[%emt 0:00:56]} 28. Ng3 {[%emt 0:02:08]} Qc2 {[%emt 0:01:30]} 29. Qe4 {[%emt 0:00:13]} Bxf2+ {[%emt 0:02:23]} 30. Rxf2 {[%emt 0:00:41]} Qc1+ {[%emt 0:00:47]} 31. Nf1 {[%emt 0:00:53]} Qh6 {[%emt 0:03:23]} 32. Qe3 {[%emt 0:01:46]} Qh5 {[%emt 0:01:46]} 33. Qxa7 {[%emt 0:00:22]} c6 {[%emt 0:01:07]} 34. Rb2 {[%emt 0:00:10]} 1-0

[Event "DLM Youth 2024"]
[Site "Tuebingen"]
[Date "2024.10.05"]
[Round "5"]
[White "Weihrauch, Jakob"]
[Black "Besou, Hussain"]
[Result "0-1"]
[ECO "B90"]
[WhiteElo "2264"]
[BlackElo "2345"]
[Annotator "RC"]
[PlyCount "70"]
[EventDate "2024.10.03"]
[EventType "team-swiss"]
[EventRounds "7"]
[EventCountry "GER"]
[SourceTitle "playchess.com"]
[Source "ChessBase"]
[SourceQuality "1"]
[TimeControl "40/5400+30:1800+30"]

1. e4 {[%emt 0:00:03]} c5 {[%emt 0:00:05]} 2. Nf3 {[%emt 0:00:05]} d6 {[%emt 0:00:05]} 3. d4 {[%emt 0:00:49]} cxd4 {[%emt 0:00:15]} 4. Nxd4 {[%emt 0:00:04]} Nf6 {[%emt 0:00:06]} 5. Nc3 {[%emt 0:00:07]} a6 {[%emt 0:00:05]} 6. h3 {[%emt 0:00:09]} e5 {[%emt 0:00:10]} 7. Nf3 {[%emt 0:00:04]} Be7 {[%emt 0:00:22]} 8. g4 {[%emt 0:00:18]} h6 {[%emt 0:00:06]} 9. Rg1 {[%emt 0:00:28]} b5 {[%emt 0:08:49]} 10. g5 {[%emt 0:01:58]} hxg5 {[%emt 0:00:22]} 11. Nxg5 {[%emt 0:00:23]} Bb7 {[%emt 0:00:49]} 12. Be3 {[%emt 0:01:00]} Nbd7 {[%emt 0:00:48]} 13. a4 {[%emt 0:04:08]} b4 {[%emt 0:05:56]} 14. Bc4 {[%emt 0:00:09]} Rf8 {[%emt 0:03:57]} 15. Nd5 {[%emt 0:11:56]} Rc8 {[%emt 0:05:29]} 16. b3 {[%emt 0:10:25]} Nxd5 {[%emt 0:03:26]} 17. exd5 {[%emt 0:24:38]} Nb6 {[%emt 0:10:05]} 18. Bxb6 {[%emt 0:03:07]} Qxb6 {[%emt 0:02:22]} 19. a5 {[%emt 0:00:32]} Qd8 {[%emt 0:03:01]} 20. Qd2 {[%emt 0:04:01]} Rc5 {[%emt 0:07:44]} 21. Qxb4 {[%emt 0:25:06]} Bxd5 {[%emt 0:01:00]} 22. Bxd5 {[%emt 0:08:01]} Rxd5 {[%emt 0:07:12]} 23. Qb7 {[%emt 0:00:31]} Rc5 {[%emt 0:02:57]} 24. Ne4 {[%emt 0:00:01]} Rxc2 {[%emt 0:01:56]} 25. Qxa6 {[%emt 0:01:16]} f5 {[%emt 0:14:08]} 26. Qd3 {[%emt 0:00:32]} Qc7 {[%emt 0:00:37]} 27. Kd1 {[%emt 0:00:04]} Rc6 {[%emt 0:03:55]} 28. Nd2 {[%emt 0:01:23]} e4 {[%emt 0:00:46]} 29. Qb5 {[%emt 0:00:23]} Qd7 {[%emt 0:00:23]} 30. Ke2 {[%emt 0:02:05]} f4 {[%emt 0:03:40]} 31. Qh5+ {[%emt 0:00:33]} Kd8 {[%emt 0:00:04]} 32. Nxe4 {[%emt 0:01:38]} f3+ {[%emt 0:00:42]} 33. Kd1 {[%emt 0:00:32]} Qe6 {[%emt 0:00:59]} 34. Qg4 {[%emt 0:00:28]} Qxb3+ {[%emt 0:00:17]} 35. Ke1 {[%emt 0:00:32]} Qb2 {[%emt 0:00:27]} 0-1

[Event "DLM Youth 2024"]
[Site "Tuebingen"]
[Date "2024.10.05"]
[Round "5"]
[White "Heinrich, John"]
[Black "Sydykov, Bayastan"]
[Result "1/2-1/2"]
[ECO "A14"]
[WhiteElo "2237"]
[BlackElo "2268"]
[Annotator "RC"]
[PlyCount "103"]
[EventDate "2024.10.03"]
[EventType "team-swiss"]
[EventRounds "7"]
[EventCountry "GER"]
[SourceTitle "playchess.com"]
[Source "ChessBase"]
[SourceQuality "1"]
[TimeControl "40/5400+30:1800+30"]

1. c4 {[%emt 0:00:05]} e6 {[%emt 0:00:17]} 2. g3 {[%emt 0:00:24]} d5 {[%emt 0:00:29]} 3. Bg2 {[%emt 0:00:08]} Nf6 {[%emt 0:00:34]} 4. Nf3 {[%emt 0:00:08]} Be7 {[%emt 0:01:00]} 5. O-O {[%emt 0:00:07]} O-O {[%emt 0:00:38]} 6. b3 {[%emt 0:00:05]} b6 {[%emt 0:04:01]} 7. cxd5 {[%emt 0:00:40]} exd5 {[%emt 0:00:59]} 8. Nc3 {[%emt 0:00:10]} Bb7 {[%emt 0:01:03]} 9. e3 {[%emt 0:00:06]} Nbd7 {[%emt 0:01:38]} 10. Bb2 {[%emt 0:00:12]} Re8 {[%emt 0:01:14]} 11. Rc1 {[%emt 0:00:37]} a6 {[%emt 0:00:58]} 12. Ne2 {[%emt 0:00:20]} Bd6 {[%emt 0:02:17]} 13. Rc2 {[%emt 0:02:27]} Rc8 {[%emt 0:15:27]} 14. Qa1 {[%emt 0:01:17]} Bf8 {[%emt 0:32:39]} 15. Rfc1 {[%emt 0:00:32]} Ne4 {[%emt 0:10:25]} 16. Nf4 {[%emt 0:07:26]} c6 {[%emt 0:06:30]} 17. h4 {[%emt 0:07:37]} a5 {[%emt 0:10:11]} 18. h5 {[%emt 0:02:39]} Ng5 {[%emt 0:02:47]} 19. Nh2 {[%emt 0:14:51]} Qe7 {[%emt 0:02:20]} 20. h6 {[%emt 0:06:12]} g6 {[%emt 0:01:46]} 21. Ng4 {[%emt 0:02:09]} Qd6 {[%emt 0:01:58]} 22. Bf6 {[%emt 0:15:10]} Ne4 {[%emt 0:00:31]} 23. Bxe4 {[%emt 0:01:35]} Rxe4 {[%emt 0:00:05]} 24. d3 {[%emt 0:02:24]} Ree8 {[%emt 0:00:20]} 25. e4 {[%emt 0:04:28]} c5 {[%emt 0:01:02]} 26. e5 {[%emt 0:01:35]} Qc6 {[%emt 0:01:01]} 27. d4 {[%emt 0:00:04]} Be7 {[%emt 0:01:01]} 28. Bxe7 {[%emt 0:01:01]} Rxe7 {[%emt 0:00:01]} 29. Kh2 {[%emt 0:03:19]} g5 {[%emt 0:01:10]} 30. Nh5 {[%emt 0:04:37]} Qg6 {[%emt 0:00:31]} 31. Nhf6+ {[%emt 0:00:23]} Nxf6 {[%emt 0:00:29]} 32. Nxf6+ {[%emt 0:00:06]} Kf8 {[%emt 0:00:19]} 33. Qc3 {[%emt 0:07:37]} Qxh6+ {[%emt 0:00:33]} 34. Kg2 {[%emt 0:00:25]} Qg6 {[%emt 0:00:26]} 35. f3 {[%emt 0:04:32]} Kg7 {[%emt 0:00:44]} 36. Qd2 {[%emt 0:01:13]} h6 {[%emt 0:00:25]} 37. g4 {[%emt 0:00:59]} a4 {[%emt 0:00:37]} 38. bxa4 {[%emt 0:04:34]} Ra8 {[%emt 0:00:31]} 39. Rb2 {[%emt 0:02:16]} Rxa4 {[%emt 0:00:32]} 40. Rxb6 {[%emt 0:02:53]} Rxd4 {[%emt 0:00:27]} 41. Qe2 {[%emt 0:15:41]} Qd3 {[%emt 0:05:01]} 42. Qxd3 {[%emt 0:00:14]} Rxd3 {[%emt 0:00:02]} 43. Rcb1 {[%emt 0:05:07]} Rxe5 {[%emt 0:06:51]} 44. Nh5+ {[%emt 0:00:16]} Kg8 {[%emt 0:00:12]} 45. Rxb7 {[%emt 0:01:11]} Re2+ {[%emt 0:00:41]} 46. Kg3 {[%emt 0:03:54]} Rdd2 {[%emt 0:00:35]} 47. Rh1 {[%emt 0:01:46]} c4 {[%emt 0:05:15]} 48. Rc7 {[%emt 0:01:54]} Rxa2 {[%emt 0:00:25]} 49. Nf6+ {[%emt 0:01:49]} Kg7 {[%emt 0:01:53]} 50. Nxd5 {[%emt 0:00:13]} Rg2+ {[%emt 0:00:23]} 51. Kh3 {[%emt 0:00:05]} Rgf2 {[%emt 0:00:21]} 52. Kg3 {[%emt 0:01:43]} 1/2-1/2

[Event "DLM Youth 2024"]
[Site "Tuebingen"]
[Date "2024.10.05"]
[Round "5"]
[White "Semling, Johannes"]
[Black "Liebold, Aaron"]
[Result "1-0"]
[ECO "B90"]
[WhiteElo "2206"]
[BlackElo "2058"]
[Annotator "RC"]
[PlyCount "57"]
[EventDate "2024.10.03"]
[EventType "team-swiss"]
[EventRounds "7"]
[EventCountry "GER"]
[SourceTitle "playchess.com"]
[Source "ChessBase"]
[SourceQuality "1"]
[TimeControl "40/5400+30:1800+30"]

1. e4 {[%emt 0:00:03]} c5 {[%emt 0:00:04]} 2. Nf3 {[%emt 0:00:05]} d6 {[%emt 0:00:04]} 3. d4 cxd4 {[%emt 0:00:03]} 4. Nxd4 {[%emt 0:00:12]} Nf6 {[%emt 0:00:04]} 5. Nc3 {[%emt 0:00:07]} a6 {[%emt 0:00:03]} 6. h3 {[%emt 0:00:40]} e5 {[%emt 0:00:20]} 7. Nf3 {[%emt 0:00:23]} Be7 {[%emt 0:02:00]} 8. g4 {[%emt 0:00:31]} h6 {[%emt 0:00:13]} 9. Rg1 {[%emt 0:00:38]} b5 {[%emt 0:10:19]} 10. g5 {[%emt 0:01:15]} hxg5 {[%emt 0:00:24]} 11. Nxg5 {[%emt 0:00:05]} Bb7 {[%emt 0:02:36]} 12. Be3 {[%emt 0:01:13]} Nbd7 {[%emt 0:00:53]} 13. a4 {[%emt 0:02:57]} b4 {[%emt 0:05:14]} 14. Bc4 {[%emt 0:00:31]} bxc3 {[%emt 0:13:08]} 15. Bxf7+ {[%emt 0:00:16]} Kf8 {[%emt 0:00:04]} 16. Bg6 {[%emt 0:01:30]} cxb2 {[%emt 0:06:48]} 17. Ne6+ {[%emt 0:01:53]} Kg8 {[%emt 0:00:04]} 18. Bf5 {[%emt 0:01:26]} Qf8 {[%emt 0:19:44]} 19. Rb1 {[%emt 0:15:14]} Qf7 {[%emt 0:02:32]} 20. Rxg7+ {[%emt 0:03:01]} Qxg7 {[%emt 0:00:06]} 21. Nxg7 {[%emt 0:00:07]} Kxg7 {[%emt 0:00:04]} 22. Bxd7 {[%emt 0:00:14]} Bxe4 {[%emt 0:11:31]} 23. Rxb2 {[%emt 0:03:38]} Kf7 {[%emt 0:01:49]} 24. f3 {[%emt 0:05:50]} Nxd7 {[%emt 0:09:28]} 25. fxe4 {[%emt 0:00:12]} Nf6 {[%emt 0:00:03]} 26. Qf3 {[%emt 0:03:13]} Rh5 {[%emt 0:00:38]} 27. Bf2 {[%emt 0:02:21]} Rd8 {[%emt 0:05:00]} 28. Rb7 {[%emt 0:01:51]} Kf8 {[%emt 0:00:58]} 29. Rb6 {[%emt 0:02:56]} 1-0